bitfinex/quotes_ETHUSD_20251218
["timestamp","ask_amount","ask_price","bid_price","bid_amount"]
[1766037603350,5.62998023,2829.7,2829.3,0.35518519]
[1766037603747,5.62998023,2829.7,2829.3,1.09757992]
[1766037604952,0.001,2829.5,2829.3,1.09757992]
[1766037605153,5.1656,2829.4,2829.3,1.09757992]
[1766037605383,0.001,2829.5,2829.3,1.09757992]
[1766037606436,0.9971,2829.5,2829.3,1.09757992]
[1766037607068,0.9971,2829.5,2829.1,0.03728519]
[1766037607069,0.9961,2829.4,2829.1,0.03728519]
[1766037607252,4.1695,2829.4,2829.1,0.03728519]
[1766037607454,4.1695,2829.4,2829.1,1.09957992]
[1766037607455,5.1656,2829.4,2829.1,1.09957992]
[1766037607836,0.9961,2829.4,2829.1,4.63426778]
[1766037608036,0.9961,2829.4,2829.1,5.65370607]
[1766037608253,0.9961,2829.4,2829.1,4.59141134]
[1766037610370,0.9961,2829.4,2829.1,1.05672348]
[1766037610662,4.1695,2829.4,2829.1,1.05672348]
[1766037610869,5.1656,2829.3,2829.1,0.03728519]
[1766037611247,5.1656,2829.3,2829.1,3.57196922]
[1766037611569,5.2616,2829.3,2829.1,0.03728519]
[1766037611867,5.3512,2829.2,2829.1,0.03728519]
[1766037612365,1.0445,2829.1,2828.9,0.002]
[1766037612567,1.0445,2828.9,2828.7,0.03528519]
[1766037612901,4.2301,2829.0,2828.3,0.002]
[1766037612902,4.2301,2828.5,2828.3,0.002]
[1766037613169,4.2301,2828.5,2828.1,3.57318656]
[1766037613170,5.2746,2828.3,2828.1,0.03728519]
[1766037613368,2.10719737,2828.4,2828.1,0.03728519]
[1766037613556,5.2746,2828.3,2828.1,0.03728519]
[1766037613745,6.33729737,2828.4,2828.1,0.03728519]
[1766037613951,2.10719737,2828.4,2828.3,0.03528519]
[1766037614260,5.2746,2828.6,2828.3,0.03528519]
[1766037614568,1.06269737,2828.5,2828.3,0.03528519]
[1766037614740,2.10719737,2828.5,2828.3,0.03528519]
[1766037614942,1.0445,2829.2,2828.4,0.3922]
[1766037615138,1.0445,2829.0,2828.3,0.36085042]
[1766037615445,1.0445,2828.9,2828.5,3.53536242]
[1766037615745,0.46438023,2829.3,2828.8,0.3959]
[1766037616159,1.50888023,2829.3,2828.8,0.3959]
[1766037616468,5.2746,2829.3,2828.8,0.3959]
[1766037616885,4.2301,2829.3,2828.8,0.3959]
[1766037617182,1.0445,2829.2,2828.8,3.93090238]
[1766037617950,5.73998023,2829.5,2828.8,3.93090238]
[1766037618151,5.73998023,2829.5,2829.0,0.4033]
[1766037618558,4.2301,2829.2,2828.9,1.09768149]
[1766037618779,4.07944259,2829.5,2828.7,0.559]
[1766037618780,5.2746,2829.0,2828.7,0.559]
[1766037618983,5.2746,2829.0,2828.8,0.03728519]
[1766037621452,4.2301,2829.0,2828.8,0.03728519]
[1766037621652,5.2746,2828.9,2828.8,0.03728519]
[1766037622496,1.0445,2828.7,2828.6,1.09774922]
[1766037622696,4.2301,2828.5,2828.1,0.03728519]
[1766037622878,7.0696396,2829.0,2828.1,0.03728519]
[1766037622879,5.2746,2828.4,2828.3,0.03528519]
[1766037623984,1.0445,2828.3,2828.1,0.03728519]
[1766037624192,5.2746,2828.3,2828.1,0.03728519]
[1766037624796,6.3373049,2828.3,2828.1,0.03728519]
[1766037625297,1.0627049,2828.3,2828.1,3.5732207]
[1766037625962,5.2746,2829.2,2828.2,0.79235817]
[1766037626164,0.001,2829.0,2828.9,0.03528519]
[1766037626885,0.001,2829.0,2828.9,0.68077038]
[1766037627495,0.46438023,2829.3,2828.9,0.68077038]
[1766037627717,0.001,2829.5,2829.1,0.03528519]
[1766037628002,0.001,2829.5,2829.3,0.03528519]
[1766037628813,0.46438023,2829.9,2829.3,0.65388519]
[1766037628977,2.14055961,2829.9,2829.6,0.03528519]
[1766037629298,1.0445,2829.8,2829.6,0.03528519]
[1766037629660,5.2746,2829.8,2829.6,0.03528519]
[1766037629869,1.09605961,2829.9,2829.3,0.03528519]
[1766037629870,1.0445,2829.7,2829.3,0.03528519]
[1766037630090,5.2746,2829.5,2829.3,0.03528519]
[1766037630279,5.2746,2829.4,2829.1,0.03528519]
[1766037630759,5.2746,2829.4,2829.1,3.56996425]
[1766037630963,4.2301,2829.7,2829.1,3.56996943]
[1766037631163,1.0445,2829.5,2829.1,3.56996943]
[1766037631363,1.0445,2829.5,2829.3,0.03528519]
[1766037632092,1.0445,2829.5,2829.3,3.56972043]
[1766037632389,1.0445,2829.6,2829.3,3.56972043]
[1766037632592,5.2756,2830.0,2829.5,0.66708519]
[1766037632793,5.2756,2830.0,2829.8,0.03528519]
[1766037632980,1.0455,2830.5,2829.9,0.559]
[1766037633179,1.0445,2830.2,2829.9,0.559]
[1766037633394,1.0445,2830.2,2829.8,0.03528519]
[1766037633600,5.2746,2829.9,2829.8,0.03528519]
[1766037633893,5.2746,2829.9,2829.7,0.03528519]
[1766037634190,1.0445,2829.9,2829.8,0.559]
[1766037634493,4.2301,2830.1,2829.8,0.559]
[1766037634693,3.53312004,2830.4,2829.7,0.03528519]
[1766037634694,5.2746,2829.8,2829.7,0.03528519]
[1766037634988,5.2746,2829.8,2829.5,4.12840367]
[1766037635193,0.46438023,2830.2,2829.7,0.03528519]
[1766037635194,4.2301,2830.1,2829.7,0.03528519]
[1766037635363,5.2746,2829.8,2829.5,4.63161797]
[1766037635565,1.0445,2829.7,2829.5,1.09747084]
[1766037635792,5.2746,2829.5,2829.3,0.03528519]
[1766037636296,4.2301,2829.4,2829.3,0.03528519]
[1766037636496,5.2746,2829.4,2829.3,0.03528519]
[1766037637179,5.2746,2829.4,2829.2,0.03528519]
[1766037637495,5.2746,2829.4,2829.0,0.559]
[1766037637496,1.0445,2829.3,2829.0,0.59428519]
[1766037637686,1.0445,2829.1,2829.0,0.03528519]
[1766037637884,5.2746,2828.9,2828.7,0.03528519]
[1766037638188,5.2746,2828.9,2828.7,3.57046712]
[1766037638591,5.2746,2828.9,2828.7,0.03528519]
[1766037638801,0.52746,2829.1,2828.7,3.57043354]
[1766037639100,0.52746,2829.5,2829.2,1.0951]
[1766037639302,5.8336,2829.7,2829.3,0.03528519]
[1766037639530,1.06235116,2829.8,2829.3,0.03528519]
[1766037639678,1.06235116,2829.8,2829.5,0.03528519]
[1766037639875,1.6035,2830.2,2829.7,0.03528519]
[1766037640177,4.2301,2830.1,2829.7,3.56917707]
[1766037640380,0.58336,2830.0,2829.8,1.06216685]
[1766037641194,5.85796,2830.0,2829.8,1.06216685]
[1766037641699,1.62786,2830.0,2829.7,0.03528519]
[1766037641888,1.2025,2829.8,2829.5,0.03528519]
[1766037642090,0.58336,2830.0,2829.5,0.03528519]
[1766037642305,5.5785,2829.9,2829.4,4.59649053]
[1766037642608,5.5785,2829.7,2829.3,3.56970869]
[1766037642931,5.5785,2829.7,2829.4,4.59655699]
[1766037643067,5.5785,2829.7,2829.5,0.03528519]
[1766037643774,0.616186,2829.8,2829.5,7.10366521]
[1766037644079,6.1375,2830.1,2829.7,0.03528519]
[1766037644274,6.1375,2830.1,2829.7,3.53390807]
[1766037644479,6.1375,2830.1,2829.6,3.53401021]
[1766037644674,6.1375,2830.1,2829.7,0.03528519]
[1766037645103,5.5785,2830.0,2829.8,3.53381864]
[1766037645281,0.61375,2829.9,2829.8,3.53381864]
[1766037646915,6.64068189,2830.2,2829.8,7.10292247]
[1766037647114,4.376,2830.0,2829.8,3.56910383]
[1766037647312,5.5785,2830.0,2829.8,3.56910383]
[1766037648022,5.5785,2830.2,2829.6,4.59618064]
[1766037648224,0.001,2829.9,2829.6,4.59618064]
[1766037648423,1.2025,2829.8,2829.7,3.53388329]
[1766037648720,4.377,2829.9,2829.7,3.53388329]
[1766037648892,5.5795,2829.9,2829.7,3.53388329]
[1766037649504,5.5795,2829.9,2829.7,7.06782681]
[1766037649705,5.5795,2829.9,2829.7,3.53388329]
[1766037650191,0.001,2829.9,2829.7,7.103112]
[1766037650621,0.55895,2829.9,2829.4,1.26988519]
[1766037650819,0.001,2829.9,2829.7,3.56922871]
[1766037651017,1.0622007,2829.8,2829.7,3.56922871]
[1766037651915,0.001,2829.9,2829.7,8.33777223]
[1766037652111,0.001,2829.9,2829.7,8.30248704]
[1766037652418,0.001,2829.9,2829.8,0.03528519]
[1766037653128,0.001,2829.9,2829.8,3.56910383]
[1766037653888,0.001,2830.7,2830.2,5.4796]
[1766037654203,1.06202396,2830.6,2830.2,5.4796]
[1766037654827,0.46538023,2830.7,2830.2,5.4796]
[1766037655219,1.52740419,2830.7,2830.2,5.4796]
[1766037655524,1.52740419,2830.7,2830.3,3.56847955]
[1766037655692,0.001,2830.7,2830.4,5.4796]
[1766037656490,0.001,2830.7,2830.5,0.03528519]
[1766037657390,0.001,2830.7,2830.6,3.53281989]
[1766037658802,0.001,2830.8,2830.6,4.76741989]
[1766037659700,4.377,2830.8,2830.5,0.03528519]
[1766037659903,0.4377,2830.7,2830.5,3.56822824]
[1766037660325,4.8137,2830.7,2830.5,0.03528519]
[1766037660623,1.7923,2830.6,2830.4,9.7e-06]
[1766037661223,0.001,2830.8,2830.4,9.7e-06]
[1766037661415,0.5269,2830.6,2830.4,9.7e-06]
[1766037661722,0.70623,2830.6,2830.4,9.7e-06]
[1766037662021,0.6199,2830.0,2829.6,0.002]
[1766037662222,1.3938,2829.9,2829.6,0.002]
[1766037662428,0.6199,2829.8,2829.5,2.715e-05]
[1766037662729,1.68218721,2829.8,2829.5,2.715e-05]
[1766037663429,1.68218721,2829.8,2829.5,3.53420018]
[1766037663622,1.06228721,2829.8,2829.5,3.53420018]
[1766037663999,1.06228721,2829.8,2829.5,2.715e-05]
[1766037664602,1.98812593,2829.8,2829.5,2.715e-05]
[1766037664995,1.98812593,2829.8,2829.6,0.002]
[1766037666710,0.92583872,2829.8,2829.6,0.002]
[1766037667227,0.18073872,2829.8,2829.6,0.002]
[1766037667431,0.559,2829.9,2829.6,0.002]
[1766037668534,0.7624,2830.1,2829.6,0.002]
[1766037668701,0.559,2829.9,2829.6,0.002]
[1766037669303,0.559,2829.9,2829.0,0.002]
[1766037669304,0.7029,2829.7,2829.0,0.002]
[1766037669500,1.2619,2829.6,2829.0,5.4816]
[1766037669703,2.03512002,2829.6,2829.0,4.247]
[1766037671107,0.559,2829.5,2829.0,4.28228519]
[1766037671326,1.2619,2829.6,2829.2,0.03528519]
[1766037671612,1.2619,2829.6,2829.2,3.56985084]
[1766037672230,1.2619,2829.6,2829.2,0.03528519]
[1766037672950,1.2619,2829.6,2829.5,0.002]
[1766037673138,1.78791125,2829.6,2829.5,0.002]
[1766037677738,5.32197966,2829.6,2829.5,0.002]
[1766037677943,0.856,2829.5,2829.0,0.002]
[1766037678307,0.856,2829.5,2828.8,3.57030376]
[1766037679632,3.53431823,2829.4,2828.8,0.03528519]
[1766037679834,0.8626,2829.3,2828.8,3.57033575]
[1766037681337,0.8626,2829.3,2828.8,7.93183575]
[1766037681840,0.8626,2829.3,2828.8,7.93383575]
[1766037682637,0.8626,2829.3,2828.8,9.52873575]
[1766037684120,0.8626,2829.3,2828.8,7.93383575]
[1766037684330,0.8626,2829.3,2828.8,4.39878519]
[1766037684562,0.001,2829.9,2829.2,0.03528519]
[1766037684852,0.56,2829.9,2829.4,0.03528519]
[1766037685049,0.56,2829.9,2829.4,4.39678519]
[1766037685214,0.8834,2829.8,2829.4,4.39678519]
[1766037685420,0.8834,2829.8,2829.4,0.03528519]
[1766037685618,0.8824,2829.7,2829.4,0.03528519]
[1766037687217,0.001,2829.8,2829.4,3.56958108]
[1766037687425,0.8908,2829.8,2829.4,0.03528519]
[1766037688050,1.4498,2829.8,2829.4,0.03528519]
[1766037688427,0.56,2829.8,2829.4,0.03528519]
[1766037688641,0.8969,2829.7,2829.4,0.03528519]
[1766037688838,0.85254319,2829.7,2829.1,0.03528519]
[1766037689167,0.8969,2829.6,2828.8,3.53700024]
[1766037689321,0.8969,2829.6,2828.8,0.002]
[1766037689651,0.8969,2829.6,2828.9,3.53487054]
[1766037690155,0.8969,2829.6,2829.4,0.002]
[1766037690525,0.9003,2829.5,2829.4,0.002]
[1766037690726,1.42899833,2829.5,2829.4,0.002]
[1766037693048,4.96319165,2829.5,2829.4,0.002]
[1766037693354,0.9103,2829.4,2829.0,0.03528519]
[1766037693654,1.4693,2829.4,2829.0,0.03528519]
[1766037693847,1.4693,2829.4,2828.8,5.99368519]
[1766037694055,1.4693,2829.4,2828.8,9.52871578]
[1766037694761,1.4693,2829.4,2828.8,5.99368519]
[1766037694953,1.4693,2829.4,2828.8,9.52874542]
[1766037695127,5.00362803,2829.4,2828.8,9.52874542]
[1766037695329,5.00362803,2829.4,2828.8,5.99368519]
[1766037695556,0.9164,2829.2,2828.8,0.03728519]
[1766037695741,0.9164,2829.2,2828.6,3.57058976]
[1766037696053,0.9164,2829.2,2828.6,0.03528519]
[1766037696460,0.9164,2829.2,2828.6,3.57056324]
[1766037698355,3.53460923,2829.2,2828.8,0.002]
[1766037698559,0.8543,2829.0,2828.8,0.002]
[1766037702150,0.8658,2828.9,2828.5,0.002]
[1766037702458,0.8658,2828.9,2828.4,3.57083964]
[1766037704056,0.8658,2828.9,2828.4,0.03528519]
[1766037705349,0.8658,2828.9,2828.4,3.57085078]
[1766037705550,0.8658,2828.9,2828.4,9.70495078]
[1766037705870,0.8658,2828.9,2828.6,0.03528519]
[1766037706048,0.8658,2828.9,2828.4,0.03728519]
[1766037706575,0.8658,2828.9,2828.4,0.002]
[1766037706576,0.8769,2828.8,2828.4,0.002]
[1766037708069,0.8814,2828.6,2828.4,0.002]
[1766037708577,1.4404,2828.6,2828.4,0.002]
[1766037709965,0.559,2828.6,2828.4,0.002]
[1766037710500,1.4447,2828.6,2828.4,0.002]
[1766037714379,0.8857,2828.6,2828.4,0.002]
[1766037714560,0.559,2828.6,2828.4,0.002]
[1766037714762,0.559,2828.6,2828.4,4.4618]
[1766037714977,0.56,2828.6,2828.4,4.4618]
[1766037715154,0.56,2828.6,2828.4,0.002]
[1766037715552,0.001,2828.6,2828.5,0.03528519]
[1766037718079,0.001,2828.6,2828.4,0.002]
[1766037718380,0.001,2828.6,2828.4,4.4618]
[1766037718956,0.001,2828.6,2828.4,6.1361]
[1766037719871,0.001,2828.6,2828.5,4.49508519]
[1766037720071,0.559,2828.7,2828.5,4.49508519]
[1766037720274,3.53486758,2829.0,2828.5,4.49508519]
[1766037720459,1.463,2828.9,2828.5,0.03528519]
[1766037720660,0.904,2828.8,2828.4,0.002]
[1766037721660,0.9208,2828.7,2828.4,0.002]
[1766037722459,0.559,2828.8,2828.4,6.1361]
[1766037722957,0.001,2828.7,2828.4,6.1361]
[1766037723359,0.001,2828.7,2828.6,6.16938519]
[1766037723587,3.53477262,2829.1,2828.6,6.1341]
[1766037723782,0.559,2829.0,2828.6,1.6743]
[1766037723984,0.559,2829.0,2828.7,6.1341]
[1766037724363,0.559,2829.0,2828.6,4.4598]
[1766037724561,1.4826,2829.0,2828.6,4.4598]
[1766037724774,0.925,2828.9,2828.4,5.78650207]
[1766037724973,0.925,2828.9,2828.4,7.46080207]
[1766037726383,0.925,2828.9,2828.4,5.78650207]
[1766037726961,5.02151407,2829.0,2828.4,10.99635589]
[1766037727190,1.4866,2829.0,2828.4,10.99635589]
[1766037727372,4.09386901,2829.0,2828.4,7.46080207]
[1766037727572,0.9276,2828.9,2828.4,7.46080207]
[1766037729101,4.46254353,2828.9,2828.4,5.78650207]
[1766037729400,0.93,2828.8,2828.4,4.4618]
[1766037730795,0.93,2828.8,2828.4,0.002]
[1766037730962,0.9322,2828.8,2828.4,0.002]
[1766037731900,3.53594353,2828.9,2828.4,0.002]
[1766037732200,0.9384,2828.8,2828.4,0.002]
[1766037733198,0.9424,2828.8,2828.4,0.002]
[1766037733569,0.9424,2828.8,2828.4,4.5674]
[1766037733771,0.9424,2828.8,2828.4,6.3595]
[1766037735298,0.001,2828.9,2828.5,0.03528519]
[1766037735518,0.001,2828.9,2828.8,4.5654]
[1766037735717,0.46538023,2829.3,2828.9,1.7921]
[1766037735897,0.001,2829.3,2829.0,4.5654]
[1766037736084,0.46538023,2829.3,2829.0,4.60068519]
[1766037736270,0.001,2829.3,2829.0,4.5654]
[1766037736471,0.001,2829.3,2828.8,1.7921]
[1766037736472,0.001,2829.3,2828.7,0.03528519]
[1766037736886,0.001,2829.3,2828.9,1.7921]
[1766037737096,0.001,2829.3,2829.0,4.5654]
[1766037737518,0.001,2829.3,2828.9,6.3575]
[1766037737716,0.9478,2829.3,2828.9,6.3575]
[1766037738317,0.001,2829.3,2829.0,1.7921]
[1766037738520,0.001,2829.3,2828.7,4.5654]
[1766037738814,1.5098,2829.1,2828.4,0.03728519]
[1766037739112,1.5098,2829.1,2828.4,3.53755545]
[1766037739318,1.5098,2828.9,2828.4,3.53755545]
[1766037739517,3.53481795,2829.0,2828.4,4.5674]
[1766037739686,1.5249,2828.9,2828.4,4.5674]
[1766037740595,1.5249,2828.9,2828.4,0.002]
[1766037740998,1.5249,2828.9,2828.4,4.5674]
[1766037741193,1.5249,2828.9,2828.4,8.10293828]
[1766037741411,1.5249,2828.9,2828.4,9.89503828]
[1766037741721,1.5273,2828.8,2828.4,0.002]
[1766037741921,1.5273,2828.8,2828.3,0.002]
[1766037742728,1.5265,2828.6,2828.3,0.002]
[1766037742895,1.5265,2828.7,2828.3,0.002]
[1766037743086,1.5265,2828.7,2828.3,6.3595]
[1766037744519,6.07947578,2828.9,2828.3,6.3595]
[1766037744724,2.95461165,2828.8,2828.3,6.3595]
[1766037745215,2.95461165,2828.8,2828.3,9.89516969]
[1766037745415,2.49023142,2828.8,2828.4,4.5654]
[1766037745620,2.49023142,2828.8,2828.4,4.5674]
[1766037745927,1.5298,2828.7,2828.4,0.002]
[1766037746789,2.49223142,2828.8,2828.4,4.5674]
[1766037747118,2.49223142,2828.8,2828.4,6.3595]
[1766037747322,1.5308,2828.8,2828.4,6.3595]
[1766037747614,1.5308,2828.8,2828.4,4.5674]
[1766037747814,0.001,2828.9,2828.6,4.5654]
[1766037748222,1.5328,2828.9,2828.5,6.3575]
[1766037748518,0.001,2828.9,2828.5,0.98971197]
[1766037748695,0.001,2828.9,2828.8,4.5654]
[1766037752121,0.46438023,2829.2,2828.8,6.3575]
[1766037752417,0.46438023,2829.1,2828.6,1.7921]
[1766037752620,0.46438023,2829.1,2828.7,4.5654]
[1766037752621,1.99968023,2829.1,2828.7,4.5654]
[1766037752826,1.99968023,2829.1,2828.4,9.89501845]
[1766037752827,1.5361,2829.0,2828.4,9.89501845]
[1766037753036,1.5361,2829.0,2828.4,11.29790907]
[1766037753236,1.5361,2829.0,2828.4,0.002]
[1766037753237,1.5361,2828.8,2828.4,0.002]
[1766037753525,1.5361,2828.8,2828.3,0.002]
[1766037753905,1.5361,2828.8,2828.4,0.002]
[1766037756095,1.5361,2828.7,2828.4,0.002]
[1766037757022,0.46438023,2828.7,2828.4,0.002]
[1766037757212,1.5367,2828.6,2828.4,0.002]
[1766037757805,2.00108023,2828.6,2828.4,0.002]
[1766037758108,2.00108023,2828.6,2828.2,0.561]
[1766037758109,1.5372,2828.5,2828.2,0.002]
[1766037759734,3.99949986,2828.8,2828.2,0.002]
[1766037759934,1.5353,2828.7,2828.2,6.3595]
[1766037760323,1.5353,2828.5,2828.2,0.002]
[1766037762140,0.46438023,2828.6,2828.2,0.002]
[1766037762436,2.40103937,2828.6,2828.2,4.8346]
[1766037763507,1.5398,2828.5,2828.2,0.002]
[1766037764740,2.40483937,2828.6,2828.2,4.8346]
[1766037764910,2.00478023,2828.6,2828.2,4.8346]
[1766037765446,0.46438023,2828.5,2828.2,4.8346]
[1766037765942,1.5404,2828.6,2828.2,4.8346]
[1766037766246,0.46438023,2828.5,2828.2,4.8346]
[1766037766424,2.00498023,2828.5,2828.2,0.002]
[1766037768320,2.00498023,2828.5,2828.0,0.561]
[1766037768321,1.5391,2828.4,2828.0,0.561]
[1766037768526,1.5391,2828.4,2828.0,8.92965694]
[1766037768817,1.5391,2828.4,2828.1,4.8326]
[1766037769545,3.99975499,2828.6,2828.1,4.8326]
[1766037769749,1.5375,2828.5,2828.1,4.8326]
[1766037770656,1.5375,2828.5,2827.9,3.53814392]
[1766037770657,0.9072453,2828.5,2827.9,0.002]
[1766037770832,1.5337,2828.2,2827.5,3.53864981]
[1766037771019,1.5337,2828.2,2827.5,0.002]
[1766037771536,1.5337,2828.2,2828.1,0.002]
[1766037772023,1.5337,2828.2,2827.5,0.002]
[1766037772024,1.67543766,2828.2,2827.5,0.002]
[1766037772346,0.46438023,2828.4,2827.4,0.002]
[1766037772347,1.5299,2828.0,2827.4,0.002]
[1766037773042,1.53,2827.8,2827.4,8.37138224]
[1766037773650,1.53,2827.8,2827.4,10.03648224]
[1766037774551,1.5302,2828.1,2827.6,6.4977]
[1766037775143,4.08042524,2828.1,2827.5,0.03528519]
[1766037775334,1.5303,2828.0,2827.5,4.86788519]
[1766037775847,4.08042524,2828.1,2827.6,1.6651]
[1766037776141,5.61072524,2828.1,2827.7,4.8326]
[1766037776346,1.5303,2828.0,2827.6,6.4977]
[1766037776954,4.00025754,2828.2,2827.7,1.6651]
[1766037777132,0.85989685,2828.1,2827.8,4.8326]
[1766037777520,0.85989685,2828.1,2827.8,6.4977]
[1766037777830,0.85989685,2828.1,2827.8,4.8326]
[1766037778030,0.85989685,2828.1,2827.7,4.8326]
[1766037778328,0.85989685,2828.1,2827.7,6.4977]
[1766037778329,1.5303,2828.1,2827.7,6.4977]
[1766037778541,1.5303,2828.1,2827.7,10.03414033]
[1766037778848,6.08932828,2828.3,2827.7,10.03414033]
[1766037779150,6.08932828,2828.3,2827.9,4.8326]
[1766037779352,1.99458023,2828.3,2827.9,4.8326]
[1766037779650,5.06556224,2828.6,2828.0,1.6651]
[1766037779855,1.5302,2828.5,2828.1,4.8326]
[1766037780146,1.99458023,2828.5,2828.1,4.8326]
[1766037780324,3.53523493,2828.7,2828.1,4.8326]
[1766037780530,1.5302,2828.6,2827.9,5.23654817]
[1766037780731,1.5302,2828.6,2828.0,0.9331837]
[1766037781147,1.5301,2828.4,2828.0,5.7657837]
[1766037781361,1.5301,2828.4,2828.0,9.3018205]
[1766037781564,2.55448023,2828.8,2828.1,4.8326]
[1766037781739,6.08960836,2828.8,2828.2,4.8326]
[1766037782263,1.5299,2828.7,2828.2,4.8326]
[1766037782574,0.001,2828.8,2828.2,1.6651]
[1766037782736,0.001,2828.8,2828.5,1.6651]
[1766037782928,0.001,2828.8,2828.6,6.4977]
[1766037783429,0.001,2828.9,2828.7,6.4977]
[1766037783638,0.001,2828.9,2828.8,4.8326]
[1766037783949,4.09452041,2829.3,2828.8,4.8326]
[1766037783950,0.001,2829.3,2829.1,1.6651]
[1766037784153,0.001,2829.8,2829.2,1.6651]
[1766037784460,0.001,2829.8,2829.5,6.4977]
[1766037785747,0.001,2829.8,2829.5,4.8326]
[1766037786955,0.001,2829.8,2829.4,4.8326]
[1766037787263,1.5321,2829.8,2829.4,4.8326]
[1766037788068,1.99648023,2829.8,2829.4,4.8326]
[1766037790465,1.99648023,2829.8,2829.3,6.4977]
[1766037790647,0.46538023,2829.8,2829.3,6.4977]
[1766037790970,1.99428023,2829.7,2829.3,4.8326]
[1766037791171,1.5299,2829.7,2829.3,10.17941461]
[1766037791561,1.99728023,2829.8,2829.3,5.34681461]
[1766037791762,0.001,2829.8,2829.5,6.5527]
[1766037792152,0.001,2829.8,2829.5,4.7403]
[1766037792153,0.46538023,2829.8,2829.5,4.7403]
[1766037792860,1.99908023,2829.8,2829.4,6.2309]
[1766037793971,0.001,2829.9,2829.4,9.58321373]
[1766037794170,0.001,2830.0,2829.8,1.6409]
[1766037794478,0.001,2830.0,2829.7,4.59]
[1766037794645,0.46438023,2829.9,2829.7,4.59]
[1766037795142,0.46538023,2830.0,2829.7,4.59]
[1766037796889,0.46538023,2830.0,2829.6,4.59]
[1766037797261,1.99728023,2830.0,2829.6,4.59]
[1766037797462,0.46538023,2830.0,2829.6,6.2309]
[1766037798086,0.001,2830.0,2829.7,4.59]
[1766037798289,0.001,2830.0,2829.7,6.2309]
[1766037799794,0.001,2830.0,2829.7,4.59]
[1766037800363,1.5304,2829.9,2829.5,7.87267412]
[1766037801388,1.5308,2830.0,2829.6,4.59]
[1766037801689,0.001,2830.0,2829.8,4.59]
[1766037801986,0.001,2830.0,2829.8,6.2309]
[1766037802490,0.001,2830.0,2829.6,1.6409]
[1766037802690,0.001,2830.0,2829.7,4.59]
[1766037802903,1.5296,2830.0,2829.6,4.59]
[1766037803481,0.46438023,2829.9,2829.6,4.59]
[1766037805595,1.99178023,2829.9,2829.5,1.64177412]
[1766037805892,1.99178023,2829.9,2829.4,0.002]
[1766037805893,1.5268,2829.7,2829.4,0.002]
[1766037806263,0.46438023,2829.8,2829.4,4.592]
[1766037806594,0.46438023,2829.8,2829.4,6.2329]
[1766037806792,1.99048023,2829.8,2829.4,4.592]
[1766037806994,1.5261,2829.7,2829.4,0.002]
[1766037808366,1.99078023,2829.9,2829.5,4.59]
[1766037808597,1.99078023,2829.9,2829.5,6.2309]
[1766037809769,5.52447632,2829.9,2829.5,6.2309]
[1766037810094,5.52448502,2829.9,2829.5,6.2309]
[1766037810609,1.524,2829.8,2829.4,4.592]
[1766037810793,1.524,2829.8,2829.4,0.002]
[1766037811993,1.98698023,2829.7,2829.4,0.002]
[1766037812309,1.5226,2829.7,2829.4,0.002]
[1766037812605,0.46438023,2829.8,2829.4,6.2329]
[1766037813380,5.52000253,2829.8,2829.4,4.592]
[1766037813679,1.5218,2829.7,2829.4,0.002]
[1766037814870,1.5193,2829.8,2829.4,4.592]
[1766037815077,0.001,2829.9,2829.5,6.2309]
[1766037815280,1.5203,2829.9,2829.5,6.2309]
[1766037816403,0.001,2829.9,2829.5,1.6409]
[1766037816578,0.001,2829.9,2829.6,6.2309]
[1766037817172,0.001,2829.9,2829.4,0.03728519]
[1766037817173,3.53474379,2829.9,2829.4,1.67818519]
[1766037817494,5.05134379,2829.9,2829.5,4.59]
[1766037818377,1.5153,2829.8,2829.4,0.03728519]
[1766037818616,5.04913242,2829.8,2829.4,0.03728519]
[1766037818915,1.514,2829.7,2829.4,0.002]
[1766037819071,1.514,2829.6,2829.4,0.002]
[1766037819477,1.10614517,2829.6,2829.1,3.53467582]
[1766037819709,3.53383242,2829.8,2829.5,4.592]
[1766037819882,6.57361927,2829.9,2829.5,6.2329]
[1766037819883,4.09372685,2829.9,2829.5,6.2329]
[1766037820088,5.60642685,2829.9,2829.5,6.2329]
[1766037820288,5.04742685,2829.9,2829.5,6.2329]
[1766037821016,5.04742685,2829.9,2829.5,4.592]
[1766037821617,5.04742685,2829.9,2829.2,8.15977864]
[1766037821618,1.5114,2829.8,2829.2,8.15977864]
[1766037821988,1.5114,2829.8,2829.2,9.87017864]
[1766037822716,1.5114,2829.8,2829.2,6.33568519]
[1766037823619,1.5078,2829.7,2829.2,6.33568519]
[1766037823786,1.5078,2829.7,2829.2,1.74568519]
[1766037824115,1.5078,2829.7,2829.3,6.6734]
[1766037824488,1.5078,2829.7,2829.3,4.963]
[1766037825014,1.5078,2829.7,2829.3,6.6734]
[1766037825517,3.53389727,2829.8,2829.4,4.963]
[1766037825716,3.53389727,2829.8,2829.4,6.6734]
[1766037826221,5.03759727,2829.8,2829.4,6.6734]
[1766037831419,5.09671828,2829.9,2829.4,1.7104]
[1766037831621,6.59341828,2829.9,2829.5,4.963]
[1766037832116,6.59341828,2829.9,2829.5,6.6734]
[1766037832626,0.001,2829.9,2829.8,4.963]
[1766037832820,0.001,2829.9,2829.8,6.6734]
[1766037833012,0.001,2829.9,2829.8,4.963]
[1766037833209,0.001,2829.9,2829.7,4.963]
[1766037833523,0.001,2829.9,2829.7,6.6734]
[1766037834724,0.001,2829.9,2829.7,1.7104]
[1766037834890,0.46538023,2830.0,2829.7,4.963]
[1766037835095,0.46538023,2830.0,2829.9,4.963]
[1766037836728,0.001,2830.5,2829.9,7.77001273]
[1766037836924,0.001,2830.5,2830.2,4.963]
[1766037837128,0.001,2830.5,2830.3,6.6734]
[1766037837426,0.001,2830.5,2830.3,4.963]